[Event "January 2 Late 2024"]
[Site "https://www.chess.com"]
[Date "2024.01.02"]
[Round "10"]
[White "Rangel, Daniel"]
[Black "Zampronha, Wladimir Camilo"]
[Result "1-0"]
[Board "99"]
[TimeControl "180+1"]
[WhiteFideId "2124475"]
[BlackFideId "2103087"]
[WhiteElo "2507"]
[BlackElo "2335"]
[WhiteTeam "BRA"]
[BlackTeam "BRA"]
[WhiteClock "0:00:03"]
[BlackClock "0:00:00"]

1. d4 {[%clk 0:03:00]}  Nf6 {[%clk 0:02:59]} 2. c4 {[%clk 0:02:59]}  c5 {[%clk 0:02:59]} 3. dxc5 {[%clk 0:02:57]}  e6 {[%clk 0:02:50]} 4. a3 {[%clk 0:02:56]}  a5 {[%clk 0:02:47]} 5. Nf3 {[%clk 0:02:53]}  Bxc5 {[%clk 0:02:46]} 6. Nc3 {[%clk 0:02:53]}  O-O {[%clk 0:02:44]} 7. e3 {[%clk 0:02:53]}  d5 {[%clk 0:02:40]} 8. cxd5 {[%clk 0:02:53]}  exd5 {[%clk 0:02:40]} 9. Be2 {[%clk 0:02:52]}  Nc6 {[%clk 0:02:40]} 10. Nb5 {[%clk 0:02:50]}  Re8 {[%clk 0:02:31]} 11. O-O {[%clk 0:02:49]}  Bg4 {[%clk 0:02:28]} 12. h3 {[%clk 0:02:42]}  Bh5 {[%clk 0:02:27]} 13. Bd2 {[%clk 0:02:39]}  Qb6 {[%clk 0:02:27]} 14. Bc3 {[%clk 0:02:35]}  Bxf3 {[%clk 0:02:25]} 15. gxf3 {[%clk 0:02:23]}  Ne5 {[%clk 0:02:07]} 16. Nd4 {[%clk 0:02:12]}  Nc4 {[%clk 0:01:52]} 17. Rb1 {[%clk 0:02:07]}  a4 {[%clk 0:01:41]} 18. Kh1 {[%clk 0:01:56]}  Qd6 {[%clk 0:01:35]} 19. Rg1 {[%clk 0:01:50]}  Qd7 {[%clk 0:01:31]} 20. Kg2 {[%clk 0:01:28]}  Rxe3 {[%clk 0:01:25]} 21. Bxc4 {[%clk 0:01:18]}  Rxc3 {[%clk 0:01:25]} 22. Bb5 {[%clk 0:01:04]}  Qc8 {[%clk 0:00:48]} 23. bxc3 {[%clk 0:01:00]}  Nh5 {[%clk 0:00:49]} 24. Qd2 {[%clk 0:00:44]}  Bd6 {[%clk 0:00:48]} 25. Ne2 {[%clk 0:00:32]}  Qf5 {[%clk 0:00:46]} 26. Bd3 {[%clk 0:00:29]}  Qe5 {[%clk 0:00:44]} 27. f4 {[%clk 0:00:24]}  Qe7 {[%clk 0:00:43]} 28. Rbe1 {[%clk 0:00:19]}  Qh4 {[%clk 0:00:42]} 29. Bc2 {[%clk 0:00:12]}  Re8 {[%clk 0:00:36]} 30. Ng3 {[%clk 0:00:11]}  Nxf4+ {[%clk 0:00:35]} 31. Kf3 {[%clk 0:00:11]}  Re6 {[%clk 0:00:24]} 32. Rxe6 {[%clk 0:00:10]}  Nxe6 {[%clk 0:00:24]} 33. Qd3 {[%clk 0:00:08]}  Ng5+ {[%clk 0:00:24]} 34. Ke2 {[%clk 0:00:08]}  Qxh3 {[%clk 0:00:23]} 35. Nf5 {[%clk 0:00:07]}  Qh5+ {[%clk 0:00:19]} 36. Kd2 {[%clk 0:00:07]}  Bf4+ {[%clk 0:00:17]} 37. Ne3 {[%clk 0:00:05]}  Qf3 {[%clk 0:00:16]} 38. Kc1 {[%clk 0:00:04]}  Qxf2 {[%clk 0:00:15]} 39. Rf1 {[%clk 0:00:04]}  Qxe3+ {[%clk 0:00:13]} 40. Kb2 {[%clk 0:00:05]}  Qxd3 {[%clk 0:00:12]} 41. Bxd3 {[%clk 0:00:05]}  Ne6 {[%clk 0:00:09]} 42. Bb5 {[%clk 0:00:04]}  g5 {[%clk 0:00:08]} 43. Bxa4 {[%clk 0:00:03]}  h5 {[%clk 0:00:08]} 44. Bb3 {[%clk 0:00:03]}  d4 {[%clk 0:00:06]} 45. cxd4 {[%clk 0:00:02]}  Nxd4 {[%clk 0:00:05]} 46. Bd5 {[%clk 0:00:03]}  b6 {[%clk 0:00:04]} 47. a4 {[%clk 0:00:03]}  Kg7 {[%clk 0:00:04]} 48. Kc3 {[%clk 0:00:03]}  g4 {[%clk 0:00:04]} 49. Kxd4 {[%clk 0:00:02]}  Bg5 {[%clk 0:00:03]} 50. Ke4 {[%clk 0:00:03]}  h4 {[%clk 0:00:02]} 51. Kf5 {[%clk 0:00:03]}  f6 {[%clk 0:00:00]} 52. Kxg4 {[%clk 0:00:03]} 1-0

[Event "January 2 Late 2024"]
[Site "https://www.chess.com"]
[Date "2024.01.02"]
[Round "10"]
[White "Biernacki, Mark"]
[Black "Tao, Sihan"]
[Result "0-1"]
[Board "100"]
[TimeControl "180+1"]
[WhiteFideId "2082322"]
[BlackFideId "30982677"]
[WhiteElo "2330"]
[BlackElo "2507"]
[WhiteTeam "USA"]
[BlackTeam "USA"]
[WhiteClock "0:00:09"]
[BlackClock "0:00:33"]

1. e4 {[%clk 0:02:59]}  c5 {[%clk 0:02:59]} 2. Nc3 {[%clk 0:02:59]}  Nc6 {[%clk 0:02:59]} 3. Bb5 {[%clk 0:02:59]}  Nd4 {[%clk 0:02:59]} 4. Nf3 {[%clk 0:02:59]}  a6 {[%clk 0:02:58]} 5. Bd3 {[%clk 0:03:00]}  g6 {[%clk 0:02:58]} 6. Nxd4 {[%clk 0:02:59]}  cxd4 {[%clk 0:02:58]} 7. Ne2 {[%clk 0:03:00]}  Bg7 {[%clk 0:02:58]} 8. c3 {[%clk 0:03:00]}  dxc3 {[%clk 0:02:58]} 9. dxc3 {[%clk 0:02:57]}  d6 {[%clk 0:02:57]} 10. O-O {[%clk 0:02:58]}  Nf6 {[%clk 0:02:57]} 11. Be3 {[%clk 0:02:55]}  O-O {[%clk 0:02:57]} 12. f4 {[%clk 0:02:53]}  Ng4 {[%clk 0:02:53]} 13. Qd2 {[%clk 0:02:53]}  Nxe3 {[%clk 0:02:53]} 14. Qxe3 {[%clk 0:02:54]}  Bd7 {[%clk 0:02:52]} 15. a4 {[%clk 0:02:50]}  Qa5 {[%clk 0:02:49]} 16. Bc2 {[%clk 0:02:37]}  Rac8 {[%clk 0:02:45]} 17. Kh1 {[%clk 0:02:27]}  Qc5 {[%clk 0:02:31]} 18. Qxc5 {[%clk 0:02:26]}  Rxc5 {[%clk 0:02:30]} 19. Rfd1 {[%clk 0:02:24]}  Be6 {[%clk 0:02:29]} 20. Nd4 {[%clk 0:02:23]}  Bxd4 {[%clk 0:02:24]} 21. Rxd4 {[%clk 0:02:23]}  Rfc8 {[%clk 0:02:24]} 22. Re1 {[%clk 0:02:18]}  Rc4 {[%clk 0:02:23]} 23. Rxc4 {[%clk 0:01:56]}  Rxc4 {[%clk 0:02:24]} 24. Bb3 {[%clk 0:01:33]}  Rc5 {[%clk 0:02:21]} 25. Bxe6 {[%clk 0:01:34]}  fxe6 {[%clk 0:02:22]} 26. Rd1 {[%clk 0:01:33]}  Rc4 {[%clk 0:01:45]} 27. Rd4 {[%clk 0:01:24]}  Rxd4 {[%clk 0:01:45]} 28. cxd4 {[%clk 0:01:25]}  e5 {[%clk 0:01:45]} 29. fxe5 {[%clk 0:01:09]}  dxe5 {[%clk 0:01:46]} 30. d5 {[%clk 0:00:42]}  Kf7 {[%clk 0:01:22]} 31. Kg1 {[%clk 0:00:42]}  Ke8 {[%clk 0:00:59]} 32. Kf2 {[%clk 0:00:40]}  Kd7 {[%clk 0:00:59]} 33. Ke3 {[%clk 0:00:21]}  Kd6 {[%clk 0:00:58]} 34. b4 {[%clk 0:00:21]}  a5 {[%clk 0:00:55]} 35. bxa5 {[%clk 0:00:21]}  Kc5 {[%clk 0:00:54]} 36. Kd3 {[%clk 0:00:21]}  Kb4 {[%clk 0:00:54]} 37. g4 {[%clk 0:00:13]}  g5 {[%clk 0:00:52]} 38. h3 {[%clk 0:00:14]}  h6 {[%clk 0:00:48]} 39. Kd2 {[%clk 0:00:11]}  Kxa5 {[%clk 0:00:39]} 40. Kc3 {[%clk 0:00:10]}  Kxa4 {[%clk 0:00:38]} 41. Kc4 {[%clk 0:00:10]}  b6 {[%clk 0:00:33]} 42. d6 {[%clk 0:00:08]}  exd6 {[%clk 0:00:34]} 43. Kd5 {[%clk 0:00:08]}  b5 {[%clk 0:00:35]} 44. Kxd6 {[%clk 0:00:09]}  b4 {[%clk 0:00:35]} 45. Kxe5 {[%clk 0:00:09]}  b3 {[%clk 0:00:36]} 46. Kf6 {[%clk 0:00:09]}  b2 {[%clk 0:00:37]} 47. e5 {[%clk 0:00:09]}  b1=Q {[%clk 0:00:37]} 48. e6 {[%clk 0:00:10]}  Qh7 {[%clk 0:00:36]} 49. e7 {[%clk 0:00:10]}  Qg8 {[%clk 0:00:37]} 50. h4 {[%clk 0:00:10]}  gxh4 {[%clk 0:00:36]} 51. g5 {[%clk 0:00:10]}  hxg5 {[%clk 0:00:36]} 52. Ke5 {[%clk 0:00:07]}  Qe8 {[%clk 0:00:36]} 53. Kf5 {[%clk 0:00:07]}  Qxe7 {[%clk 0:00:36]} 54. Kg4 {[%clk 0:00:08]}  h3 {[%clk 0:00:36]} 55. Kg3 {[%clk 0:00:09]}  Qe4 {[%clk 0:00:35]} 56. Kf2 {[%clk 0:00:09]}  h2 {[%clk 0:00:34]} 57. Kg3 {[%clk 0:00:09]}  h1=Q {[%clk 0:00:33]} 58. Kf2 {[%clk 0:00:09]}  Qhg2# {[%clk 0:00:33]} 0-1

[Event "January 2 Late 2024"]
[Site "https://www.chess.com"]
[Date "2024.01.02"]
[Round "10"]
[White "Dinu, Dumitru-Daniel"]
[Black "Skaric, Djuro"]
[Result "0-1"]
[Board "101"]
[TimeControl "180+1"]
[WhiteFideId "1208403"]
[BlackFideId "934569"]
[WhiteElo "2506"]
[BlackElo "2303"]
[WhiteTeam "ROU"]
[BlackTeam "SRB"]
[WhiteClock "0:00:06"]
[BlackClock "0:00:23"]

1. e4 {[%clk 0:03:00]}  d6 {[%clk 0:02:58]} 2. d4 {[%clk 0:03:00]}  g6 {[%clk 0:02:58]} 3. Nc3 {[%clk 0:03:00]}  Bg7 {[%clk 0:02:59]} 4. Bc4 {[%clk 0:03:01]}  Nf6 {[%clk 0:02:59]} 5. Qe2 {[%clk 0:03:01]}  O-O {[%clk 0:02:59]} 6. e5 {[%clk 0:03:01]}  Nfd7 {[%clk 0:02:59]} 7. Nf3 {[%clk 0:03:00]}  Nb6 {[%clk 0:02:52]} 8. Bb3 {[%clk 0:02:59]}  Nc6 {[%clk 0:02:51]} 9. Bf4 {[%clk 0:02:53]}  Bg4 {[%clk 0:02:51]} 10. Qe3 {[%clk 0:02:43]}  Bxf3 {[%clk 0:02:45]} 11. gxf3 {[%clk 0:02:43]}  dxe5 {[%clk 0:02:40]} 12. dxe5 {[%clk 0:02:43]}  h5 {[%clk 0:02:40]} 13. Rg1 {[%clk 0:02:39]}  e6 {[%clk 0:02:37]} 14. Bh6 {[%clk 0:02:37]}  Kh7 {[%clk 0:02:37]} 15. Bxg7 {[%clk 0:02:34]}  Kxg7 {[%clk 0:02:37]} 16. f4 {[%clk 0:02:34]}  Qd4 {[%clk 0:02:27]} 17. Qg3 {[%clk 0:02:30]}  Rh8 {[%clk 0:02:12]} 18. Rd1 {[%clk 0:02:27]}  Qb4 {[%clk 0:02:11]} 19. a3 {[%clk 0:02:26]}  Qe7 {[%clk 0:02:11]} 20. Rd3 {[%clk 0:02:23]}  Rad8 {[%clk 0:02:08]} 21. Ne4 {[%clk 0:02:19]}  Rxd3 {[%clk 0:02:06]} 22. cxd3 {[%clk 0:02:19]}  Nd4 {[%clk 0:02:06]} 23. Bd1 {[%clk 0:02:19]}  Nf5 {[%clk 0:02:04]} 24. Qf3 {[%clk 0:02:12]}  Nd4 {[%clk 0:01:56]} 25. Qg3 {[%clk 0:02:06]}  Nf5 {[%clk 0:01:55]} 26. Qf3 {[%clk 0:02:06]}  Nh4 {[%clk 0:01:48]} 27. Qh3 {[%clk 0:01:57]}  Nd5 {[%clk 0:01:46]} 28. Rg5 {[%clk 0:01:16]}  Nf5 {[%clk 0:01:35]} 29. Qf3 {[%clk 0:01:15]}  h4 {[%clk 0:01:15]} 30. Rg1 {[%clk 0:00:51]}  h3 {[%clk 0:01:11]} 31. Ng5 {[%clk 0:00:51]}  Qc5 {[%clk 0:01:03]} 32. Qg4 {[%clk 0:00:47]}  Qe7 {[%clk 0:00:49]} 33. Bf3 {[%clk 0:00:44]}  Rh4 {[%clk 0:00:46]} 34. Nxe6+ {[%clk 0:00:37]}  Qxe6 {[%clk 0:00:41]} 35. Qg5 {[%clk 0:00:27]}  Nxf4 {[%clk 0:00:41]} 36. Be4 {[%clk 0:00:23]}  Ng2+ {[%clk 0:00:26]} 37. Kf1 {[%clk 0:00:24]}  Qxe5 {[%clk 0:00:23]} 38. Bxg2 {[%clk 0:00:17]}  hxg2+ {[%clk 0:00:23]} 39. Rxg2 {[%clk 0:00:18]}  Qf4 {[%clk 0:00:23]} 40. Qd8 {[%clk 0:00:09]}  Qc1+ {[%clk 0:00:23]} 41. Ke2 {[%clk 0:00:06]}  Nd4+ {[%clk 0:00:23]} 0-1

[Event "January 2 Late 2024"]
[Site "https://www.chess.com"]
[Date "2024.01.02"]
[Round "10"]
[White "Shapiro, Viktor"]
[Black "Andersson, Bjorn 1971"]
[Result "1-0"]
[Board "103"]
[TimeControl "180+1"]
[WhiteFideId "4175700"]
[BlackFideId "1702114"]
[WhiteElo "2491"]
[BlackElo "2260"]
[WhiteTeam "RUS"]
[BlackTeam "SWE"]
[WhiteClock "0:00:14"]
[BlackClock "0:01:08"]

1. d4 {[%clk 0:03:00]}  c5 {[%clk 0:02:59]} 2. d5 {[%clk 0:03:00]}  d6 {[%clk 0:02:58]} 3. c4 {[%clk 0:03:01]}  g6 {[%clk 0:02:59]} 4. Nc3 {[%clk 0:03:01]}  Bg7 {[%clk 0:03:00]} 5. e4 {[%clk 0:03:01]}  Na6 {[%clk 0:03:00]} 6. Nf3 {[%clk 0:03:00]}  Nc7 {[%clk 0:03:01]} 7. Bd3 {[%clk 0:03:00]}  a6 {[%clk 0:03:01]} 8. a4 {[%clk 0:03:01]}  Nf6 {[%clk 0:02:57]} 9. O-O {[%clk 0:03:00]}  O-O {[%clk 0:02:55]} 10. h3 {[%clk 0:03:01]}  Bd7 {[%clk 0:02:53]} 11. Qe2 {[%clk 0:02:57]}  b5 {[%clk 0:02:52]} 12. axb5 {[%clk 0:02:57]}  axb5 {[%clk 0:02:53]} 13. Rxa8 {[%clk 0:02:57]}  Qxa8 {[%clk 0:02:53]} 14. cxb5 {[%clk 0:02:58]}  Rb8 {[%clk 0:02:52]} 15. Bg5 {[%clk 0:02:41]}  Qb7 {[%clk 0:02:50]} 16. Ra1 {[%clk 0:02:37]}  h6 {[%clk 0:02:48]} 17. Bh4 {[%clk 0:02:33]}  Nxb5 {[%clk 0:02:42]} 18. Bxb5 {[%clk 0:02:15]}  Bxb5 {[%clk 0:02:41]} 19. Nxb5 {[%clk 0:01:54]}  Qxb5 {[%clk 0:02:40]} 20. Qxb5 {[%clk 0:01:55]}  Rxb5 {[%clk 0:02:41]} 21. Ra8+ {[%clk 0:01:52]}  Bf8 {[%clk 0:02:40]} 22. Bxf6 {[%clk 0:01:38]}  exf6 {[%clk 0:02:39]} 23. Nd2 {[%clk 0:01:33]}  Kg7 {[%clk 0:02:23]} 24. b3 {[%clk 0:01:27]}  Rb4 {[%clk 0:02:16]} 25. f3 {[%clk 0:01:26]}  f5 {[%clk 0:02:15]} 26. exf5 {[%clk 0:01:26]}  gxf5 {[%clk 0:02:15]} 27. g4 {[%clk 0:01:08]}  Rd4 {[%clk 0:02:11]} 28. Nc4 {[%clk 0:01:08]}  Rxd5 {[%clk 0:02:08]} 29. Ne3 {[%clk 0:01:07]}  Rd3 {[%clk 0:02:03]} 30. Nxf5+ {[%clk 0:01:07]}  Kg8 {[%clk 0:01:57]} 31. Nxh6+ {[%clk 0:01:06]}  Kg7 {[%clk 0:01:55]} 32. Nf5+ {[%clk 0:01:06]}  Kg8 {[%clk 0:01:55]} 33. Kg2 {[%clk 0:01:00]}  d5 {[%clk 0:01:51]} 34. Rd8 {[%clk 0:00:54]}  d4 {[%clk 0:01:47]} 35. b4 {[%clk 0:00:54]}  cxb4 {[%clk 0:01:38]} 36. Rxd4 {[%clk 0:00:53]}  Rc3 {[%clk 0:01:31]} 37. Rd8 {[%clk 0:00:52]}  f6 {[%clk 0:01:21]} 38. h4 {[%clk 0:00:36]}  b3 {[%clk 0:01:21]} 39. Rb8 {[%clk 0:00:36]}  Rc2+ {[%clk 0:01:21]} 40. Kh3 {[%clk 0:00:34]}  b2 {[%clk 0:01:20]} 41. g5 {[%clk 0:00:30]}  fxg5 {[%clk 0:01:19]} 42. hxg5 {[%clk 0:00:30]}  Kf7 {[%clk 0:01:19]} 43. Rb7+ {[%clk 0:00:16]}  Kg6 {[%clk 0:01:15]} 44. Kg4 {[%clk 0:00:16]}  Ba3 {[%clk 0:01:08]} 45. Nh4# {[%clk 0:00:14]} 1-0

[Event "January 2 Late 2024"]
[Site "https://www.chess.com"]
[Date "2024.01.02"]
[Round "10"]
[White "Curtis, John"]
[Black "Dobre, Claudiu-Cristian"]
[Result "0-1"]
[Board "104"]
[TimeControl "180+1"]
[WhiteFideId "3200256"]
[BlackFideId "1211854"]
[WhiteElo "2243"]
[BlackElo "2488"]
[WhiteTeam "AUS"]
[BlackTeam "ROU"]
[WhiteClock "0:00:00"]
[BlackClock "0:00:11"]

1. d4 {[%clk 0:03:00]}  f5 {[%clk 0:02:59]} 2. Bg5 {[%clk 0:02:57]}  g6 {[%clk 0:02:55]} 3. Nc3 {[%clk 0:02:52]}  d5 {[%clk 0:02:55]} 4. h4 {[%clk 0:02:49]}  h6 {[%clk 0:02:55]} 5. Bf4 {[%clk 0:02:48]}  Nf6 {[%clk 0:02:53]} 6. g3 {[%clk 0:02:41]}  c6 {[%clk 0:02:48]} 7. Nf3 {[%clk 0:02:15]}  Nbd7 {[%clk 0:02:44]} 8. Ne5 {[%clk 0:02:14]}  Nxe5 {[%clk 0:02:44]} 9. Bxe5 {[%clk 0:02:14]}  Bg7 {[%clk 0:02:43]} 10. e3 {[%clk 0:02:13]}  b6 {[%clk 0:02:36]} 11. Ne2 {[%clk 0:02:13]}  Kf7 {[%clk 0:02:17]} 12. Nf4 {[%clk 0:02:09]}  Ng4 {[%clk 0:02:13]} 13. Bxg7 {[%clk 0:02:00]}  Kxg7 {[%clk 0:02:12]} 14. h5 {[%clk 0:01:55]}  g5 {[%clk 0:02:12]} 15. Ng6 {[%clk 0:01:55]}  Re8 {[%clk 0:02:13]} 16. Be2 {[%clk 0:01:47]}  Nf6 {[%clk 0:01:36]} 17. Qd3 {[%clk 0:01:21]}  a5 {[%clk 0:01:09]} 18. f4 {[%clk 0:01:17]}  g4 {[%clk 0:01:07]} 19. Ne5 {[%clk 0:01:14]}  Qd6 {[%clk 0:01:06]} 20. c3 {[%clk 0:01:02]}  Ne4 {[%clk 0:00:58]} 21. Rg1 {[%clk 0:00:59]}  Ba6 {[%clk 0:00:52]} 22. Qc2 {[%clk 0:00:56]}  Bxe2 {[%clk 0:00:51]} 23. Kxe2 {[%clk 0:00:56]}  c5 {[%clk 0:00:47]} 24. Rad1 {[%clk 0:00:52]}  cxd4 {[%clk 0:00:44]} 25. Rxd4 {[%clk 0:00:51]}  b5 {[%clk 0:00:41]} 26. Qd3 {[%clk 0:00:43]}  e6 {[%clk 0:00:37]} 27. Kf1 {[%clk 0:00:39]}  Reb8 {[%clk 0:00:30]} 28. Kg2 {[%clk 0:00:36]}  Qc7 {[%clk 0:00:26]} 29. Rc1 {[%clk 0:00:25]}  Ra7 {[%clk 0:00:26]} 30. a3 {[%clk 0:00:22]}  Qb7 {[%clk 0:00:26]} 31. b4 {[%clk 0:00:20]}  Nd6 {[%clk 0:00:25]} 32. Qd1 {[%clk 0:00:17]}  Nc4 {[%clk 0:00:21]} 33. Nxg4 {[%clk 0:00:14]}  fxg4 {[%clk 0:00:21]} 34. Qxg4+ {[%clk 0:00:14]}  Kh8 {[%clk 0:00:22]} 35. Qxe6 {[%clk 0:00:13]}  Ra6 {[%clk 0:00:20]} 36. Qh3 {[%clk 0:00:08]}  Rg8 {[%clk 0:00:20]} 37. Re1 {[%clk 0:00:08]}  Qf7 {[%clk 0:00:16]} 38. e4 {[%clk 0:00:07]}  Qxf4 {[%clk 0:00:14]} 39. exd5 {[%clk 0:00:00]}  Qg5 {[%clk 0:00:11]} 0-1

[Event "January 2 Late 2024"]
[Site "https://www.chess.com"]
[Date "2024.01.02"]
[Round "10"]
[White "Salman, Ilhan Serhat"]
[Black "Novikova, Margarita"]
[Result "1-0"]
[Board "107"]
[TimeControl "180+1"]
[WhiteFideId "6361579"]
[BlackFideId "14109689"]
[WhiteElo "2441"]
[BlackElo "2178"]
[WhiteTeam "TUR"]
[BlackTeam "GER"]
[WhiteClock "0:01:19"]
[BlackClock "0:00:00"]

1. e3 {[%clk 0:03:00]}  e5 {[%clk 0:02:59]} 2. c4 {[%clk 0:03:01]}  Nf6 {[%clk 0:02:59]} 3. Nc3 {[%clk 0:03:01]}  d5 {[%clk 0:02:58]} 4. cxd5 {[%clk 0:02:59]}  Nxd5 {[%clk 0:02:59]} 5. g3 {[%clk 0:02:59]}  Nxc3 {[%clk 0:02:59]} 6. bxc3 {[%clk 0:02:58]}  Nc6 {[%clk 0:02:59]} 7. Bg2 {[%clk 0:02:59]}  Qd3 {[%clk 0:02:55]} 8. Qe2 {[%clk 0:02:55]}  Qxe2+ {[%clk 0:02:53]} 9. Nxe2 {[%clk 0:02:54]}  Bd7 {[%clk 0:02:54]} 10. O-O {[%clk 0:02:54]}  O-O-O {[%clk 0:02:53]} 11. d4 {[%clk 0:02:54]}  exd4 {[%clk 0:02:51]} 12. cxd4 {[%clk 0:02:54]}  Bd6 {[%clk 0:02:42]} 13. Bd2 {[%clk 0:02:48]}  h5 {[%clk 0:02:41]} 14. Rab1 {[%clk 0:02:45]}  h4 {[%clk 0:02:39]} 15. Nc3 {[%clk 0:02:42]}  hxg3 {[%clk 0:02:38]} 16. hxg3 {[%clk 0:02:42]}  Bh3 {[%clk 0:02:36]} 17. Nb5 {[%clk 0:02:38]}  Bxg2 {[%clk 0:02:34]} 18. Kxg2 {[%clk 0:02:39]}  Be7 {[%clk 0:02:21]} 19. Rfc1 {[%clk 0:02:32]}  a6 {[%clk 0:02:21]} 20. Nxc7 {[%clk 0:02:12]}  Kxc7 {[%clk 0:02:16]} 21. Ba5+ {[%clk 0:02:12]}  Kc8 {[%clk 0:02:13]} 22. Bxd8 {[%clk 0:02:13]}  Rxd8 {[%clk 0:02:09]} 23. Rh1 {[%clk 0:02:06]}  Bf6 {[%clk 0:02:06]} 24. g4 {[%clk 0:02:05]}  g6 {[%clk 0:02:03]} 25. f4 {[%clk 0:02:04]}  Re8 {[%clk 0:01:58]} 26. Kf3 {[%clk 0:02:04]}  g5 {[%clk 0:01:47]} 27. Rh7 {[%clk 0:01:59]}  gxf4 {[%clk 0:01:45]} 28. Kxf4 {[%clk 0:01:58]}  Rf8 {[%clk 0:01:33]} 29. g5 {[%clk 0:01:58]}  Bd8 {[%clk 0:01:31]} 30. Rf1 {[%clk 0:01:47]}  Bc7+ {[%clk 0:01:23]} 31. Kg4 {[%clk 0:01:42]}  Nd8 {[%clk 0:01:15]} 32. g6 {[%clk 0:01:39]}  Rg8 {[%clk 0:01:13]} 33. g7 {[%clk 0:01:39]}  Kd7 {[%clk 0:00:37]} 34. Kh5 {[%clk 0:01:39]}  Ke7 {[%clk 0:00:33]} 35. Kh6 {[%clk 0:01:30]}  Ne6 {[%clk 0:00:32]} 36. d5 {[%clk 0:01:29]}  Nxg7 {[%clk 0:00:09]} 37. Rxg7 {[%clk 0:01:30]}  Rh8+ {[%clk 0:00:08]} 38. Rh7 {[%clk 0:01:30]}  Rf8 {[%clk 0:00:08]} 39. Kh5 {[%clk 0:01:26]}  Be5 {[%clk 0:00:06]} 40. a4 {[%clk 0:01:23]}  b5 {[%clk 0:00:06]} 41. axb5 {[%clk 0:01:23]}  axb5 {[%clk 0:00:07]} 42. Rb1 {[%clk 0:01:23]}  Rb8 {[%clk 0:00:06]} 43. Kg4 {[%clk 0:01:23]}  b4 {[%clk 0:00:04]} 44. Kf5 {[%clk 0:01:23]}  Bd6 {[%clk 0:00:04]} 45. e4 {[%clk 0:01:22]}  b3 {[%clk 0:00:04]} 46. e5 {[%clk 0:01:23]}  Ba3 {[%clk 0:00:04]} 47. e6 {[%clk 0:01:23]}  b2 {[%clk 0:00:01]} 48. Rxf7+ {[%clk 0:01:23]}  Kd6 {[%clk 0:00:01]} 49. Rd7+ {[%clk 0:01:24]}  Kc5 {[%clk 0:00:00]} 50. e7 {[%clk 0:01:19]} 1-0

[Event "January 2 Late 2024"]
[Site "https://www.chess.com"]
[Date "2024.01.02"]
[Round "10"]
[White "Jaque Gutierrez, Matias"]
[Black "Clarke, Matthew"]
[Result "1-0"]
[Board "109"]
[TimeControl "180+1"]
[WhiteFideId "3426980"]
[BlackFideId "3227804"]
[WhiteElo "2427"]
[BlackElo "2164"]
[WhiteTeam "CHI"]
[BlackTeam "AUS"]
[WhiteClock "0:00:46"]
[BlackClock "0:00:00"]

1. d4 {[%clk 0:03:00]}  d5 {[%clk 0:02:59]} 2. Nf3 {[%clk 0:02:59]}  Nf6 {[%clk 0:02:59]} 3. c4 {[%clk 0:02:59]}  e6 {[%clk 0:02:59]} 4. g3 {[%clk 0:02:59]}  Be7 {[%clk 0:02:58]} 5. Bg2 {[%clk 0:02:59]}  O-O {[%clk 0:02:58]} 6. O-O {[%clk 0:02:59]}  dxc4 {[%clk 0:02:59]} 7. Qc2 {[%clk 0:03:00]}  a6 {[%clk 0:02:59]} 8. a4 {[%clk 0:03:00]}  Bd7 {[%clk 0:03:00]} 9. Qxc4 {[%clk 0:02:58]}  Bc6 {[%clk 0:03:00]} 10. Bg5 {[%clk 0:02:58]}  Bd5 {[%clk 0:03:00]} 11. Qc2 {[%clk 0:02:53]}  Be4 {[%clk 0:03:00]} 12. Qc1 {[%clk 0:02:53]}  Nc6 {[%clk 0:02:41]} 13. e3 {[%clk 0:02:35]}  h6 {[%clk 0:02:34]} 14. Bxf6 {[%clk 0:02:34]}  Bxf6 {[%clk 0:02:35]} 15. Nc3 {[%clk 0:02:35]}  Bh7 {[%clk 0:01:57]} 16. Rd1 {[%clk 0:02:34]}  Be7 {[%clk 0:00:49]} 17. e4 {[%clk 0:02:26]}  Nb4 {[%clk 0:00:48]} 18. Ne5 {[%clk 0:02:21]}  Qc8 {[%clk 0:00:39]} 19. a5 {[%clk 0:02:13]}  Rd8 {[%clk 0:00:28]} 20. Na4 {[%clk 0:02:10]}  f6 {[%clk 0:00:16]} 21. Nc4 {[%clk 0:02:06]}  Qd7 {[%clk 0:00:11]} 22. Qc3 {[%clk 0:02:04]}  Qb5 {[%clk 0:00:10]} 23. Ne3 {[%clk 0:01:48]}  Nc6 {[%clk 0:00:07]} 24. d5 {[%clk 0:01:43]}  exd5 {[%clk 0:00:06]} 25. Nxd5 {[%clk 0:01:39]}  Bd6 {[%clk 0:00:06]} 26. Bf1 {[%clk 0:01:14]}  Qxa5 {[%clk 0:00:06]} 27. Qb3 {[%clk 0:01:14]}  Kh8 {[%clk 0:00:06]} 28. Nac3 {[%clk 0:01:12]}  Qc5 {[%clk 0:00:04]} 29. Rac1 {[%clk 0:01:10]}  Qa7 {[%clk 0:00:04]} 30. Ne2 {[%clk 0:00:59]}  Rac8 {[%clk 0:00:03]} 31. Bg2 {[%clk 0:00:59]}  Bc5 {[%clk 0:00:03]} 32. Rf1 {[%clk 0:00:52]}  Ne5 {[%clk 0:00:03]} 33. h3 {[%clk 0:00:46]}  c6 {[%clk 0:00:00]} 34. Ndf4 {[%clk 0:00:46]} 1-0